Cogmind - Beta 16 @@@ ROGUE MODE // 2026.01.12 @ 13:44:14 Player: exo Result: Core destroyed Performance ------------- Evolutions (2) 1000 Regions Visited (5) 1000 Robots Destroyed (27) 135 Value Destroyed (916) 916 Prototype IDs (24) 480 Alien Tech Used (0) 0 Bonus (283) 283 TOTAL SCORE: 3814 Bonus ------- Aligned with FarCom 300 Friendly Fire -17 Cogmind --------- Core Integrity 0/550 Matter 236/300 Energy 280/280 System Corruption 0% Temperature Critical (539) Movement Core (150) Ox2 Location -8/Materials Parts ------- > --- POWER (3) -------- Cooled Ion Engine > --- PROPULSION (2) --- (None) > --- UTILITY (4) ------ Targeting Computer > --- WEAPON (2) ------- (None) > --- INVENTORY (5) ---- Ion Engine Hover Unit Terrain Scan Processor Targeting Computer Peak State ------------ > --- POWER ------------ Light Ion Engine Cooled Ion Engine Nuclear Core > --- PROPULSION ------- Wheel Compact Wheel > --- UTILITY ---------- 0b10 Alert Chip Targeting Computer ECM Suite Improved Light Armor Plating > --- WEAPON ----------- Spread Laser Heavy Particle Cannon > --- INVENTORY -------- Ion Engine Hover Unit Terrain Scan Processor Targeting Computer [Rating: 25] Favorites ----------- Power Light Ion Engine Engine Light Ion Engine Power Core Nuclear Core Propulsion Light Treads Treads Light Treads Wheel Wheel Utility ECM Suite Device ECM Suite Storage Medium Storage Unit Processor Targeting Computer Protection Improved Light Armor Plating Weapon Beam Cannon Energy Gun EM Pulse Gun Energy Cannon Beam Cannon Build | -11 -10 -10 -10 -9 -8 ------- Run | Yrd Mat Min Exi Min Mat Slots Evolved 4 | . . . . . 4 Power 2 | . . . . . 2 Propulsion . | . . . . . . Utility 2 | . . . . . 2 Weapon . | . . . . . . Parts Attached 28 | 1 9 5 . 5 8 Power 9 | . 2 2 . 2 3 Engine 8 | . 2 2 . 2 2 Core 1 | . . . . . 1 Reactor . | . . . . . . Propulsion 5 | . 2 1 . 2 . Treads 3 | . 2 1 . . . Leg . | . . . . . . Wheel 2 | . . . . 2 . Hover . | . . . . . . Flight . | . . . . . . Utility 6 | 1 2 . . . 3 Device 1 | . 1 . . . . Storage 2 | 1 1 . . . . Processor 2 | . . . . . 2 Hackware . | . . . . . . Protection 1 | . . . . . 1 Artifact . | . . . . . . Weapon 8 | . 3 2 . 1 2 Energy Gun 3 | . 2 . . . 1 Energy Cannon 5 | . 1 2 . 1 1 Ballistic Gun . | . . . . . . Ballistic Cannon . | . . . . . . Launcher . | . . . . . . Special Weapon . | . . . . . . Impact Weapon . | . . . . . . Slashing Weapon . | . . . . . . Piercing Weapon . | . . . . . . Special Melee Weapon . | . . . . . . Unidentified Prototypes 1 | . . . . . 1 Parts Lost 15 | . . 1 . 4 10 Power 4 | . . . . 2 2 Propulsion 4 | . . . . 2 2 Utility 4 | . . . . . 4 Weapon 3 | . . 1 . . 2 Highest Loss Streak 10 | . . 1 . 2 10 To Critical Strikes . | . . . . . . Average Backups 7 | 3 6 7 8 8 7 Power 1 | 1 1 1 1 1 . Propulsion . | 1 . 1 1 1 1 Utility 3 | . 1 3 5 5 5 Weapon 1 | 1 3 1 1 . . Tool/Special . | . . . . . . Unused Backups 11 | . . 1 3 . 7 Power 1 | . . 1 . . . Propulsion 1 | . . . . . 1 Utility 8 | . . . 3 . 5 Weapon 1 | . . . . . 1 Tool/Special . | . . . . . . Average Slot Usage (%) 96 | . 96 99 100 89 95 Engine 14 | . 13 14 14 13 23 Treads 22 | . 27 28 28 17 . Wheel 2 | . . . . 1 16 Device 13 | . 13 14 14 14 9 Storage 13 | . 14 14 14 14 7 Processor 1 | . . . . . 17 Energy Gun 6 | . 23 1 . . 4 Energy Cannon 19 | . 3 26 28 28 12 Peak Build Rating 25 | 1 7 9 11 9 25 Average Rating 8 | . 6 7 8 7 19 On Entrance 5 | . 1 7 9 9 8 Avg Prop Armor Cover (%) . | . . . . . . Naked Turns . | . . . . . . Heaviest Build 39 | 5 22 25 25 25 39 Greatest Support 40 | 3 40 40 40 40 26 Greatest Overweight (x) 6 | 1 1 . . 6 3 Average Overweight (x) . | . . . . . 1 Largest Inventory Capacity 10 | 8 10 10 10 10 10 Average Capacity 9 | 6 9 10 10 10 9 Most Carried 10 | 6 9 10 10 10 10 Average Carried 7 | 4 6 7 8 8 7 Final Capacity 10 | 8 10 10 10 10 5 Final Carried 10 | 6 9 10 8 10 4 Class Distribution -------------------- 92% | Mutant 7% | Scavenger-Mutant Dominant Class ---------------- Mutant | -10/Materials Mutant | -10/Mines Mutant | -10/Exiles Mutant | -9/Mines Scavenger-Mutant | -8/Materials Resources | -11 -10 -10 -10 -9 -8 ----------- Run | Yrd Mat Min Exi Min Mat Matter Collected 600 | 201 129 165 30 75 . Remotely . | . . . . . . Salvage Created 1017 | . 337 281 . 289 110 Parts 50 | . 24 11 . 9 6 Haulers Intercepted . | . . . . . . Recyclers Shooed 1 | . 1 . . . . Parts Field Recycled . | . . . . . . Retrieved Matter . | . . . . . . Parts Self-Destructed . | . . . . . . Prevented . | . . . . . . Parts Restored . | . . . . . . Kills | -11 -10 -10 -10 -9 -8 ------- Run | Yrd Mat Min Exi Min Mat Combat Hostiles Destroyed 23 | . 6 6 . 8 3 Guns 4 | . 4 . . . . Cannons 17 | . 2 6 . 8 1 AOE 2 | . . . . . 2 Classes Destroyed 8 | . 5 1 . 2 . Builder 4 | . 2 . . 1 1 Tunneler 1 | . . . . 1 . Recycler 1 | . 1 . . . . Watcher 1 | . 1 . . . . Swarmer 3 | . 3 . . . . Grunt 15 | . 3 4 . 5 3 Sentry 2 | . . 2 . . . Assembled 3 | . . . . 3 . Best Kill Streak 4 | . 4 2 . 3 4 Combat Bots Only 3 | . 2 2 . 3 3 Max Kills in Single Turn 2 | . 1 1 . 1 2 Gunslinging . | . . . . . . Exploded 2 | . . . . . 2 Melee . | . . . . . . Uniques/NPCs Destroyed . | . . . . . . Combat | -11 -10 -10 -10 -9 -8 -------- Run | Yrd Mat Min Exi Min Mat Hostile Shots Fired 188 | . 33 25 . 58 72 Missed 41 | . 9 8 . 18 6 Hits 147 | . 24 17 . 40 66 Projectile 147 | . 24 17 . 40 66 Critical Strikes 4 | . . 1 . 1 2 Damage Taken 2326 | . 249 238 . 555 1284 Core 740 | . 46 15 . 65 614 Absorbed by Shields . | . . . . . . Core Remaining (%) 74 | 100 . . . 49 . Volleys Fired 86 | . 25 17 . 29 15 Largest 2 | . 2 2 . 2 2 Hottest 140 | . 100 120 . 120 140 Shots Fired 144 | . 48 33 . 41 22 Gun 44 | . 36 3 . . 5 Cannon 100 | . 12 30 . 41 17 Launcher . | . . . . . . Special . | . . . . . . Kinetic . | . . . . . . Thermal 105 | . 12 30 . 41 22 Explosive . | . . . . . . Electromagnetic 39 | . 36 3 . . . Robot Hit Streak 7 | . 4 7 . 4 6 Robot Miss Streak 5 | . 3 3 . 3 5 Penetration Max . | . . . . . . Secondary Targets . | . . . . . . Shots Hit Robots 76 | . 26 18 . 18 14 Core Hits 49 | . 12 9 . 12 16 Critical Kills . | . . . . . . Critical Parts Destroyed . | . . . . . . Critical Strikes . | . . . . . . Melee Attacks . | . . . . . . Impact . | . . . . . . Slashing . | . . . . . . Piercing . | . . . . . . Sneak Attacks . | . . . . . . Combat Hostiles . | . . . . . . Follow-up Attacks . | . . . . . . Damage Inflicted 2019 | . 384 422 . 387 826 Guns 355 | . 289 28 . . 38 Cannons 929 | . 52 280 . 387 210 Explosions 735 | . 43 114 . . 578 Melee . | . . . . . . Ramming . | . . . . . . Kinetic . | . . . . . . Thermal 1124 | . 95 394 . 387 248 Explosive 578 | . . . . . 578 Electromagnetic 317 | . 289 28 . . . Impact . | . . . . . . Slashing . | . . . . . . Piercing . | . . . . . . Highest Corruption . | . . . . . . Average Corruption . | . . . . . . Corruption Purged . | . . . . . . Corruption Blocked . | . . . . . . Overload Shots . | . . . . . . Overflow Damage 42 | . . 17 . . 25 Projectiles 15 | . . . . . 15 Explosions 27 | . . 17 . . 10 Melee . | . . . . . . Knockbacks . | . . . . . . Impact . | . . . . . . Kinetic . | . . . . . . Secondary . | . . . . . . Self-Inflicted Damage 86 | . . . . . 86 Shots 1 | . . . . . 1 Rammed 1 | . . . . . 1 Targets Rammed 1 | . . . . . 1 Kicked . | . . . . . . Crushed . | . . . . . . Highest Temperature 745 | . 171 307 . 541 745 Average Temperature 166 | . 54 103 . 172 415 Received Heat Transfer 1041 | . 90 120 . 264 567 Effects 35 | . . . . 10 25 Shutdowns 12 | . . . . 2 10 Energy Bleed 3 | . . . . 1 2 Interference 7 | . . . . 4 3 Matter Decay 1 | . . . . . 1 Short Circuit 1 | . . . . . 1 Damage (minor) 4 | . . . . . 4 Damage (major) 5 | . . . . 3 2 Damage (core) 2 | . . . . . 2 Siege Activations . | . . . . . . Martial Activations . | . . . . . . Shielding Activations . | . . . . . . Robots Disrupted . | . . . . . . Combat Hostiles . | . . . . . . Robots Corrupted . | . . . . . . Combat Hostiles . | . . . . . . Parts Fried 2 | . 2 . . . . Impact Corruptions . | . . . . . . Robots Melted . | . . . . . . Combat Hostiles . | . . . . . . Parts Melted . | . . . . . . Heat Transferred 2095 | . 111 792 . 814 378 Parts Sabotaged . | . . . . . . Parts Stolen . | . . . . . . Parts Stripped . | . . . . . . Power Chain Reactions 1 | . 1 . . . . Alert | -11 -10 -10 -10 -9 -8 ------- Run | Yrd Mat Min Exi Min Mat Maximum Alert Level . | . . . . . . Low Security (%) 100 | 100 100 100 . 100 100 Level 1 . | . . . . . . Level 2 . | . . . . . . Level 3 . | . . . . . . Level 4 . | . . . . . . Level 5 . | . . . . . . High Security . | . . . . . . Max Security . | . . . . . . Peak Influence 154 | . 109 154 . 82 108 Initial 33 | . . 33 . . . Average 22 | . 17 37 . 16 4 Influence Increases 793 | . 193 254 . 172 174 Destroy 0b10 Robot/C 396 | . 120 120 . 100 56 Destroy 0b10 Robot/NC 35 | . 20 . . 10 5 Destroy Leader 80 | . 32 20 . 20 8 Disable Machine 195 | . 15 90 . 30 60 Destroy Structure 87 | . 6 24 . 12 45 Influence Decreases 705 | . 108 339 . 172 86 Entered New Map 52 | . . 52 . . . Time Decay 532 | . 108 277 . 142 5 Lost Part 121 | . . 10 . 30 81 Squads Dispatched 2 | . 1 . . . 1 Investigation 1 | . . . . . 1 Extermination . | . . . . . . Reinforcement 1 | . 1 . . . . Assault . | . . . . . . Garrison . | . . . . . . Intercept . | . . . . . . Searches Triggered . | . . . . . . Construction Impeded . | . . . . . . Haulers Reinforced . | . . . . . . Active Scanning Responses . | . . . . . . Cargo Convoy Interrupts . | . . . . . . Stealth | -11 -10 -10 -10 -9 -8 --------- Run | Yrd Mat Min Exi Min Mat Distress Signals 1 | . . . . . 1 Communications Jammed . | . . . . . . Distress Signals . | . . . . . . Times Spotted 36 | . 10 7 . 8 11 Peak Tracking Total 6 | . 4 2 . 3 6 Tactical Retreats 3 | . 1 1 . . 1 ECM-based Alert Blocks 5 | . 1 1 . . 3 Traps | -11 -10 -10 -10 -9 -8 ------- Run | Yrd Mat Min Exi Min Mat Traps Triggered 2 | . 1 . . . 1 Indirectly . | . . . . . . Trap Hack Attempts . | . . . . . . Triggered . | . . . . . . Disarmed . | . . . . . . Reprogrammed . | . . . . . . Reused . | . . . . . . Traps Extracted . | . . . . . . Installed . | . . . . . . Triggered . | . . . . . . Machines | -11 -10 -10 -10 -9 -8 ---------- Run | Yrd Mat Min Exi Min Mat Machines Disabled 13 | . 1 6 . 2 4 Max in Single Turn 6 | . 1 6 . 2 2 Machines Repaired . | . . . . . . Machines Dismantled . | . . . . . . Machines Sabotaged . | . . . . . . Overloaded Fab Kills . | . . . . . . Hacking | -11 -10 -10 -10 -9 -8 --------- Run | Yrd Mat Min Exi Min Mat Machines Accessed 2 | . 1 . 1 . . Terminals . | . . . . . . Fabricators . | . . . . . . Repair Stations . | . . . . . . Recycling Units 1 | . 1 . . . . Scanalyzers . | . . . . . . Garrison Access . | . . . . . . Total Hacks 2 | . 1 . 1 . . Successful 2 | . 1 . 1 . . Failed . | . . . . . . Catastrophic . | . . . . . . Database Lockouts . | . . . . . . Manual 1 | . . . 1 . . Terminals . | . . . . . . Fabricators . | . . . . . . Repair Stations . | . . . . . . Recycling Units 1 | . 1 . . . . Scanalyzers . | . . . . . . Garrison Access . | . . . . . . Terminal Hacks 1 | . . . 1 . . Proto ID Catalog 1 | . . . 1 . . Fabricator Hacks . | . . . . . . Repair Station Hacks . | . . . . . . Recycling Unit Hacks 1 | . 1 . . . . Report Inventory 1 | . 1 . . . . Scanalyzer . | . . . . . . Garrison Access Hacks . | . . . . . . Unauthorized Hacks . | . . . . . . Terminals . | . . . . . . Fabricators . | . . . . . . Repair Stations . | . . . . . . Recycling Units . | . . . . . . Scanalyzers . | . . . . . . Garrison Access . | . . . . . . Data Cores Recovered . | . . . . . . Used . | . . . . . . Hacking Detections . | . . . . . . Full Trace Events . | . . . . . . Feedback Events . | . . . . . . Feedback Blocked . | . . . . . . Robot Schematics Acquired . | . . . . . . Robots Built . | . . . . . . Authchips . | . . . . . . Time . | . . . . . . Total Robot Build Rating . | . . . . . . Part Schematics Acquired . | . . . . . . Parts Built . | . . . . . . Authchips . | . . . . . . Time . | . . . . . . Total Part Build Rating . | . . . . . . Part Studies Acquired . | . . . . . . Parts Repaired . | . . . . . . Time . | . . . . . . Parts Recycled . | . . . . . . Recycled Matter . | . . . . . . Retrieved Matter . | . . . . . . Retrieved Components . | . . . . . . Parts Scanalyzed . | . . . . . . Part Schematics Acquired . | . . . . . . Parts Damaged . | . . . . . . Bothacking | -11 -10 -10 -10 -9 -8 ------------ Run | Yrd Mat Min Exi Min Mat Used RIF Installer . | . . . . . . Robots Hacked . | . . . . . . Non-combat . | . . . . . . Combat . | . . . . . . Robot Hacks Applied . | . . . . . . Relay Couplers Released . | . . . . . . Fabnet Peak Effective % . | . . . . . . Robots Rewired . | . . . . . . Allies Hacked . | . . . . . . Hacks Repelled . | . . . . . . Allies | -11 -10 -10 -10 -9 -8 -------- Run | Yrd Mat Min Exi Min Mat Total Allies . | . . . . . . Largest Group . | . . . . . . Highest-Rated Group . | . . . . . . Highest-Rated Ally . | . . . . . . Total Orders . | . . . . . . Ally Attacks . | . . . . . . Total Damage . | . . . . . . Kills . | . . . . . . Allies Corrupted . | . . . . . . Allies Melted . | . . . . . . Intel | -11 -10 -10 -10 -9 -8 ------- Run | Yrd Mat Min Exi Min Mat Active Infowar (turns) 2895 | . 688 868 449 628 262 ECM 2895 | . 688 868 449 628 262 Robot Analysis Total . | . . . . . . Derelict Logs Recovered 2 | . . 2 . . . Drone Launches . | . . . . . . Drone Recoveries . | . . . . . . Exploration | -11 -10 -10 -10 -9 -8 ------------- Run | Yrd Mat Min Exi Min Mat Turns Passed 2994 | 40 710 868 449 628 299 Spaces Moved 1522 | 42 350 384 279 250 217 Core 77 | 42 12 . . 17 6 Treads 1199 | . 338 384 279 198 . Legs . | . . . . . . Wheels 246 | . . . . 35 211 Hover . | . . . . . . Flight . | . . . . . . Fastest Speed 50 | 50 100 160 160 90 105 Average Speed 155 | 78 157 160 160 192 107 Slowest Speed 350 | 100 160 160 160 350 200 Overloaded Moves . | . . . . . . Propulsion Burnouts . | . . . . . . Robots Hopped . | . . . . . . Potential Cave-ins . | . . . . . . Cave-ins Triggered . | . . . . . . Exploration Rate (%) 46 | 4 47 86 64 54 24 Regions Visited 5 Branch Regions 3 Pre-discovered Areas 2 | . . 2 . . . Known Exits Taken 1 | . . 1 . . . Unknown Exits Taken 4 | 1 1 . 1 1 . Scrap Searched 1 | . . 1 . . . Spaces Dug . | . . . . . . Terrain Destroyed 105 | . 6 33 . 13 53 Melee . | . . . . . . Projectile 2 | . . . . . 2 AOE 103 | . 6 33 . 13 51 Terrain Rammed . | . . . . . . Walls Destroyed . | . . . . . . Machines Disabled . | . . . . . . Actions | -11 -10 -10 -10 -9 -8 --------- Run | Yrd Mat Min Exi Min Mat Total 2007 | 48 459 605 284 353 258 Wait 314 | . 57 190 . 60 7 Move 1517 | 41 349 383 278 249 217 Hop . | . . . . . . Pick Up 40 | 6 14 6 2 6 6 Fast Attach 2 | 1 . . . 1 . Attach 20 | . 10 1 . 3 6 Detach . | . . . . . . Swap 13 | . 2 4 . 4 3 Drop 14 | . 2 4 4 1 3 Fire 86 | . 25 17 . 29 15 Melee . | . . . . . . Ram 1 | . . . . . 1 Kick . | . . . . . . Crush . | . . . . . . Escape Stasis . | . . . . . . Rewire . | . . . . . . Trap . | . . . . . . Miscellaneous . | . . . . . . Route ------- -11/Scrapyard -10/Materials -10/Mines (discovered 3 exits: [*Mat x2] / *Exi) -10/Exiles -9/Mines -8/Materials History --------- Turn | Location | Event 22 | -11/Scrapyard | Discovered new exit (range 14) 41 | -11/Scrapyard | Entered Materials 316 | -10/Materials | Build established: Mutant 497 | -10/Materials | Discovered new exit (range 13) 751 | -10/Materials | Entered Mines 752 | -10/Mines | Learned location of Storage (-9) 787 | -10/Mines | Met a Derelict bent on vengeance 834 | -10/Mines | Discovered new exit (range 7) 1137 | -10/Mines | Identified exit to Exiles 1400 | -10/Mines | Discovered new exit (range 5) 1536 | -10/Mines | Learned location of Mines (-9) 1613 | -10/Mines | Deemed a non-threat by the Exiles lab entrance 1619 | -10/Mines | Entered Exiles 1661 | -10/Exiles | Met 8R-AWN 1687 | -10/Exiles | Met EX-HEX 1741 | -10/Exiles | Met EX-BIN 1760 | -10/Exiles | Aligned with FarCom system 1762 | -10/Exiles | Given EX-Vault access code 1824 | -10/Exiles | Opened EX-Vault 1835 | -10/Exiles | Found Lightpack 2.0 1850 | -10/Exiles | Found 0b10 Alert Chip 1883 | -10/Exiles | Warned to stay clear of 0b10 Research branches 1893 | -10/Exiles | Exiles lab attacked by MAIN.C 2043 | -10/Exiles | Discovered new exit (range 14) 2068 | -10/Exiles | Left Exiles lab with 0b10 Alert Chip 2068 | -10/Exiles | Entered Mines 2315 | -9/Mines | Assembled infested the area 2606 | -9/Mines | Core integrity fell below 50% 2680 | -9/Mines | Discovered new exit (range 13) 2696 | -9/Mines | Entered Materials 2696 | -8/Materials | Evolved 4 slots: Power x2, Utility x2 2987 | -8/Materials | Core integrity fell below 50% 2991 | -8/Materials | Core integrity fell below 20% 2996 | -8/Materials | Core destroyed Last Messages --------------- Atomic Centrifuge disabled. Spread Laser destroyed. Nuclear Core destroyed. The unstable cave ceiling collapses. Nuclear Reactor explodes. G-47 Trooper destroyed. Nuclear Reactor explodes. G-47 Trooper destroyed. Overheating: Core damaged (-99). The unstable cave ceiling collapses. Power failure, Cld. Ion Engine shutdown. Overheating: ECM Suite damaged (-1). Overheating: Broken 0b10 Alert Chip damaged (-3). Critical hit (Burn: +37). ECM Suite destroyed. Broken 0b10 Alert Chip destroyed. Power failure, Cld. Ion Engine shutdown. Overheating: Matter decay (-26). Overheating: Core damaged (-88). Map ----- +----------------------------------------------------+ | | | | | | | | | | | | | | | | | | | | | | | | | | | | | | | | | | | ??????????????????????????## ###### | | ???????????????##?????????# ! # | | ???????????????#]]=???????# = ! "" | | ???????????????#]]==??????# ""S | | ???????????????# ?????# # "" | | ???????????##### ##### % | | ???????????+ [ # /g Y= / | | ??????????????# # g ! ###+## | | ???????????????????# @ g ! | | ???????????????????# """ # "" +=! | | ???????????????????# """ # """ # #####/## | | ???????????????????# """ # """ # """ #?# | | ???????????????????# # # """ #?# | | ???????????????????# ######## """ ### " | | ???????????????????# """ ######## """ + T | | ???????????????????# """ ### " | | ???????????????????# """ #?#* | | ???????????????????# ? """ #?###### | | ???????????????????# ?? """ #?###### | | ??????????????????? ??##+####### """ ### | | ??????????????????? ???????????# """ # """ | | ??????????????????? ???????????# # """" | | ???????????????????# #??????????# # """ | | ???????????????????# #??????????# + | | ???????????????????# #??????????# # | | ???????????????????# #??????????# # | | ???????????????????# #??????????# ###+######### | | ???????????????????# #??????????# #???????????? | | ???????????????????# #??????????# #???????????? | | ???????????????????# #??????????# #???????????? | | ???????????????????# ]#??????????# #???????????? | | ???????????????????# #??????????# #???????????? | | ?????????????????### ###?######## #???????????? | +----------------------------------------------------+ Best States ------------- Heat Dissipation 31 Energy Generation 28 Energy Capacity 445 Matter Stores 300 Matter Capacity 300 Sight Range 16 Terrain Scan Density 10 ECM Strength 1 Armor Coverage 150 Evasion (%) 50 Targeting Accuracy 5 Recoil Reduction 2 Item Schematics ----------------- None Robot Schematics ------------------ None Fabricated ------------ Nothing Repaired ---------- Nothing Studied --------- None Alien Tech Used ----------------- None Achievements -------------- None Challenges ------------ None Game ------ Seed LobotomySmartbombExoskeleton Manual? 0 Play Time 00:26:54 Cumulative 10.1 hours Start 2026.01.12 @ 13:17:58 End 2026.01.12 @ 13:44:14 Sessions 1 Manual Loads 0 Difficulty Rogue Special Mode None Game No. 36 Rogue 36 Adventurer 0 Explorer 0 Win Type - Total 0 Types 0/0/0/0/0/0/0/0/0/0 Lore% 8 Gallery% 11 Achievement% 9 Wizard Run 0 Options --------- Layout 1 ASCII 0 Keyboard 0 Movement Mouse Keybinds 0 Fullscreen 1 Font 24/Smallcaps Map View 50x35 Zoom Use 0% Tactical HUD 0 Map Filters NONE Filters NONE Steam 1 RUN: ca2c9a03-0562-4a84-aef6-25dcfd95eb6e